bitfinex-derivatives/quotes_BTCF0:USTF0_20260113
["timestamp","ask_amount","ask_price","bid_price","bid_amount"]
[1768277776586,0.19241466,91530.0,91515.0,0.00016392]
[1768277776787,0.05973874,91527.0,91515.0,0.00016392]
[1768277779191,0.19241466,91530.0,91515.0,0.00016392]
[1768277780485,0.05973874,91529.0,91515.0,0.00016392]
[1768277786294,0.05973874,91529.0,91519.0,0.13267592]
[1768277787490,0.05973874,91529.0,91519.0,0.14361492]
[1768277787791,0.05973874,91529.0,91519.0,0.010939]
[1768277787991,0.05973874,91529.0,91519.0,0.14361492]
[1768277788191,0.05973874,91529.0,91519.0,0.010939]
[1768277788696,0.07067574,91538.0,91519.0,0.24334827]
[1768277789792,0.16580694,91538.0,91519.0,0.24334827]
[1768277789998,0.05973874,91537.0,91519.0,0.24334827]
[1768277791295,0.05973874,91537.0,91519.0,0.13267592]
[1768277791498,0.13267592,91530.0,91515.0,0.01110392]
[1768277791696,0.05973874,91529.0,91515.0,0.00016392]
[1768277793199,0.05973874,91532.0,91519.0,0.13267592]
[1768277793495,0.010936,91543.0,91520.0,0.17324221]
[1768277793699,0.13267592,91540.0,91521.0,0.09973335]
[1768277794698,0.0951312,91544.0,91530.0,0.13267592]
[1768277795096,0.0951312,91544.0,91522.0,0.1098541]
[1768277795500,0.13267592,91540.0,91522.0,0.1098541]
[1768277796200,0.10390182,91545.0,91522.0,0.1098541]
[1768277796201,0.10390182,91545.0,91530.0,0.13267592]
[1768277796903,0.1563748,91545.0,91530.0,0.13267592]
[1768277797602,0.05247298,91544.0,91530.0,0.13267592]
[1768277799299,0.13267592,91540.0,91525.0,0.0989151]
[1768277802113,0.05247298,91539.0,91522.0,0.09844]
[1768277802609,0.05247298,91531.0,91522.0,0.09844]
[1768277803309,0.05247298,91536.0,91522.0,0.09844]
[1768277807715,0.1851489,91540.0,91522.0,0.09844]
[1768277807906,0.1851489,91540.0,91523.0,0.0989151]
[1768277809518,0.05247298,91540.0,91523.0,0.0989151]
[1768277810617,0.05247298,91539.0,91523.0,0.0989151]
[1768277810918,0.05247298,91539.0,91522.0,0.09844]
[1768277811814,0.010937,91541.0,91522.0,0.1973551]
[1768277812013,0.06340998,91541.0,91523.0,0.0989151]
[1768277812823,0.05247298,91541.0,91523.0,0.0989151]
[1768277814219,0.05247298,91544.0,91526.0,0.14650931]
[1768277814421,0.05247298,91544.0,91527.0,0.0989151]
[1768277822744,0.05247298,91552.0,91532.0,0.14061241]
[1768277822934,0.05247298,91552.0,91534.0,0.04082338]
[1768277823136,0.05247298,91552.0,91533.0,0.0989151]
[1768277828949,0.010936,91550.0,91533.0,0.0989151]
[1768277829142,0.05078551,91548.0,91533.0,0.0989151]
[1768277830443,0.00240312,91548.0,91533.0,0.0989151]
[1768277836954,0.04282665,91547.0,91526.0,0.010938]
[1768277837252,0.04282665,91546.0,91526.0,0.10129649]
[1768277837852,0.04282665,91544.0,91526.0,0.09035849]
[1768277840057,0.04282665,91544.0,91525.0,0.00546302]
[1768277840058,0.04282665,91539.0,91525.0,0.00546302]
[1768277840547,0.05376365,91538.0,91525.0,0.00546302]
[1768277840851,0.04282665,91537.0,91525.0,0.00546302]
[1768277846156,0.04282665,91535.0,91520.0,0.09844]
[1768277848152,0.04282665,91535.0,91515.0,0.02432139]
[1768277848358,0.04282665,91535.0,91515.0,0.12276139]
[1768277848658,0.04282665,91535.0,91515.0,0.21311988]
[1768277848955,0.04282665,91535.0,91516.0,0.09035849]
[1768277851363,0.09844,91543.0,91515.0,0.09860392]
[1768277851364,0.04282665,91531.0,91515.0,0.09860392]
[1768277851666,0.05376465,91530.0,91515.0,0.09860392]
[1768277851855,0.04282665,91524.0,91508.0,0.09844]
[1768277853570,0.04282665,91522.0,91508.0,0.09844]
[1768277854164,0.04282665,91522.0,91502.0,0.09035849]
[1768277854661,0.04282665,91520.0,91502.0,0.09035849]
[1768277857366,0.03887522,91518.0,91499.0,0.1974313]
[1768277857771,0.04981522,91515.0,91499.0,0.1974313]
[1768277858366,0.13265779,91520.0,91488.0,0.9597077]
[1768277858367,0.03887522,91512.0,91493.0,0.0989913]
[1768277859171,0.03887522,91509.0,91488.0,0.101396]
[1768277859370,0.03887522,91509.0,91490.0,0.12548158]
[1768277859571,0.03887522,91509.0,91491.0,0.0989913]
[1768277860569,0.03903914,91512.0,91492.0,0.0989913]
[1768277860765,0.09860392,91512.0,91496.0,0.0989913]
[1768277860971,0.09860392,91512.0,91504.0,0.0989913]
[1768277862164,0.09844,91541.0,91521.0,0.12507983]
[1768277862363,0.010937,91541.0,91524.0,0.0989913]
[1768277862571,0.04981222,91539.0,91524.0,0.0989913]
[1768277862776,0.03887522,91538.0,91524.0,0.0989913]
[1768277864175,0.010937,91539.0,91524.0,0.0989913]
[1768277864475,0.03887522,91541.0,91524.0,0.0989913]
[1768277864676,0.00546182,91545.0,91533.0,0.0989913]
[1768277864974,0.00546182,91545.0,91535.0,0.0989913]
[1768277870381,0.00240312,91548.0,91537.0,0.12155367]
[1768277871174,0.01333912,91548.0,91537.0,0.0989913]
[1768277871385,0.03887522,91547.0,91532.0,0.09844]
[1768277872391,0.01333912,91548.0,91532.0,0.09844]
[1768277872392,0.01333912,91548.0,91532.0,0.1974313]
[1768277872573,0.01333912,91548.0,91533.0,0.0989913]
[1768277875083,0.13264069,91543.0,91533.0,0.0989913]
[1768277876978,0.01333912,91548.0,91533.0,0.0989913]
[1768277877181,0.13264069,91543.0,91533.0,0.0989913]
[1768277877872,0.01333912,91548.0,91533.0,0.0989913]
[1768277878183,0.13264069,91543.0,91533.0,0.0989913]
[1768277879290,0.01333912,91548.0,91533.0,0.0989913]
[1768277880788,0.00240312,91548.0,91538.0,0.01718483]
[1768277880985,0.13264069,91550.0,91539.0,0.11617613]
[1768277882384,0.13264069,91550.0,91541.0,0.0989913]
[1768277882986,0.13264069,91551.0,91541.0,0.0989913]
[1768277885987,0.13264069,91551.0,91542.0,0.02221034]
[1768277886189,0.13264069,91552.0,91543.0,0.12217624]
[1768277886486,0.23108069,91553.0,91543.0,0.12217624]
[1768277886686,0.23108069,91553.0,91543.0,0.0999659]
[1768277887588,0.109374,91560.0,91547.0,0.0999659]
[1768277887793,0.04144169,91566.0,91531.0,0.00016392]
[1768277887794,0.00240234,91578.0,91550.0,0.09079407]
[1768277888082,0.00240234,91578.0,91561.0,0.0999659]
[1768277888288,0.00240234,91578.0,91562.0,0.09844]
[1768277888480,0.010932,91577.0,91562.0,0.09844]
[1768277888682,0.13264069,91572.0,91562.0,0.09844]
[1768277889084,0.13264069,91572.0,91563.0,0.03933988]
[1768277889285,0.010932,91577.0,91563.0,0.03933988]
[1768277890177,0.13264069,91573.0,91563.0,0.03933988]
[1768277890378,0.010933,91572.0,91563.0,0.09844]
[1768277892195,0.13264069,91573.0,91560.0,0.03933988]
[1768277892196,0.13264069,91573.0,91561.0,0.09844]
[1768277892497,0.010934,91567.0,91559.0,0.09844]
[1768277892683,0.22616267,91571.0,91559.0,0.09844]
[1768277892684,0.13264069,91568.0,91559.0,0.09844]
[1768277893793,0.13264069,91570.0,91559.0,0.09844]
[1768277893994,0.13264069,91570.0,91558.0,0.07316096]
[1768277894398,0.10838312,91576.0,91558.0,0.07316096]
[1768277894793,0.13264069,91570.0,91558.0,0.07316096]
[1768277895292,0.10838312,91576.0,91558.0,0.07316096]
[1768277895493,0.13264069,91570.0,91558.0,0.07316096]
[1768277896504,0.10838312,91576.0,91558.0,0.07316096]
[1768277896712,0.13264069,91570.0,91558.0,0.00016382]
[1768277897205,0.10838312,91569.0,91558.0,0.00016382]
[1768277897405,0.20019104,91570.0,91544.0,0.07299714]
[1768277897406,0.16500047,91566.0,91555.0,0.09844]
[1768277897604,0.09745012,91564.0,91555.0,0.09844]
[1768277898105,0.13264069,91565.0,91555.0,0.09844]
[1768277898592,0.09745012,91569.0,91555.0,0.09844]
[1768277898796,0.13264069,91565.0,91555.0,0.09844]
[1768277899304,0.09745012,91569.0,91551.0,0.07299714]
[1768277899607,0.09745012,91569.0,91553.0,0.07299714]
[1768277900799,0.09745012,91569.0,91553.0,0.07199714]
[1768277901702,0.14357369,91570.0,91553.0,0.07199714]
[1768277902706,0.14357369,91570.0,91554.0,0.08667543]
[1768277902911,0.13264069,91570.0,91557.0,0.07299714]
[1768277904520,0.00016382,91573.0,91557.0,0.07299714]
[1768277904720,0.13264069,91570.0,91557.0,0.07299714]
[1768277904916,0.00016382,91573.0,91558.0,0.1596034]
[1768277905124,0.06210063,91570.0,91559.0,0.07299714]
[1768277905622,0.00016382,91573.0,91560.0,0.13264069]
[1768277905823,0.00016382,91573.0,91561.0,0.01636602]
[1768277908413,0.13264069,91571.0,91561.0,0.01636602]
[1768277908823,0.00016382,91573.0,91561.0,0.01636602]
[1768277909420,0.13264069,91571.0,91561.0,0.01636602]
[1768277909630,0.13264069,91571.0,91558.0,0.10037056]
[1768277909923,0.13264069,91571.0,91559.0,0.01301345]
[1768277911820,0.00016382,91573.0,91559.0,0.01301345]
[1768277911821,0.13264069,91570.0,91559.0,0.01301345]
[1768277912322,0.00016382,91573.0,91559.0,0.01301345]
[1768277912523,0.13264069,91570.0,91559.0,0.01301345]
[1768277912718,0.00016382,91573.0,91559.0,0.08233016]
[1768277912925,0.00016382,91573.0,91560.0,0.13264069]
[1768277913911,0.00016382,91573.0,91561.0,0.00193713]
[1768277914110,0.00016382,91573.0,91562.0,0.0984]
[1768277914309,0.00016382,91573.0,91562.0,0.10033713]
[1768277914713,0.00016382,91573.0,91563.0,0.00160627]
[1768277915124,0.01333434,91578.0,91563.0,0.13424696]
[1768277915125,0.00240234,91578.0,91563.0,0.13424696]
[1768277915323,0.00240234,91578.0,91568.0,0.13264069]
[1768277915821,0.00240234,91578.0,91562.0,0.0984]
[1768277918330,0.00240234,91578.0,91568.0,0.13264069]
[1768277918523,0.00240234,91578.0,91562.0,0.0984]
[1768277919027,0.09531641,91578.0,91562.0,0.0984]
[1768277919213,0.10379707,91576.0,91563.0,0.0984]
[1768277919414,0.10379707,91576.0,91564.0,0.0984]
[1768277920024,0.09291407,91576.0,91564.0,0.0984]
[1768277927915,0.00240234,91578.0,91564.0,0.0984]
[1768277929030,0.00240234,91578.0,91568.0,0.13264069]
[1768277929230,0.00240234,91578.0,91564.0,0.0984]
[1768277936731,0.09531641,91578.0,91564.0,0.0984]
[1768277936928,0.16058983,91575.0,91562.0,0.00016382]
[1768277937129,0.09291407,91574.0,91563.0,0.0984]
[1768277937329,0.09291407,91574.0,91564.0,0.0984]
[1768277938626,0.09291407,91574.0,91552.0,0.010935]
[1768277938830,0.09291407,91574.0,91545.0,0.00546182]
[1768277938831,0.06767576,91569.0,91545.0,0.00546182]
[1768277939027,0.16058983,91564.0,91545.0,0.00546182]
[1768277939226,0.09291407,91563.0,91546.0,0.0984]
[1768277940930,0.16058983,91563.0,91545.0,0.00546182]
[1768277941233,0.16058983,91563.0,91546.0,0.0984]
[1768277941234,0.10384807,91562.0,91546.0,0.0984]
[1768277941630,0.09291407,91561.0,91545.0,0.00546182]
[1768277941828,0.09291407,91560.0,91547.0,0.0984]
[1768277943430,0.09291407,91558.0,91536.0,0.0984]
[1768277943836,0.09291407,91558.0,91519.0,0.05990424]
[1768277943837,0.09291407,91554.0,91529.0,0.00533358]
[1768277944039,0.09291407,91553.0,91530.0,0.0984]
[1768277944429,0.09291407,91553.0,91530.0,0.109338]
[1768277944629,0.09291407,91553.0,91530.0,0.11467158]
[1768277945237,0.00016382,91556.0,91535.0,0.01681957]
[1768277945537,0.00016382,91556.0,91536.0,0.00588257]
[1768277946333,0.00016382,91556.0,91537.0,0.010937]
[1768277946540,0.00016382,91556.0,91538.0,0.00588257]
[1768277946930,0.00016382,91556.0,91539.0,0.010937]
[1768277947125,0.00016382,91556.0,91542.0,0.00690281]
[1768277950037,0.00016382,91556.0,91537.0,0.010937]
[1768277950238,0.00016382,91556.0,91537.0,0.01627429]
[1768277955638,0.00016382,91556.0,91539.0,0.010937]
[1768277956247,0.00016382,91556.0,91540.0,0.00562175]
[1768277957649,0.00016382,91556.0,91540.0,0.10402175]
[1768277957949,0.09426327,91549.0,91540.0,0.0984]
[1768277958745,0.010935,91554.0,91540.0,0.0984]
[1768277959049,0.10519827,91554.0,91540.0,0.0984]
[1768277960852,0.09426327,91553.0,91540.0,0.0984]
[1768277961249,0.09426327,91553.0,91540.0,0.0886]
[1768277966460,0.15309037,91553.0,91540.0,0.0886]
[1768277966657,0.09426327,91552.0,91540.0,0.0886]
[1768277967657,0.09426327,91552.0,91532.0,0.010938]
[1768277967658,0.09426327,91544.0,91531.0,0.0984]
[1768277967954,0.09426327,91544.0,91530.0,0.010938]
[1768277971360,0.09426327,91539.0,91525.0,0.00546302]
[1768277971565,0.09426327,91543.0,91525.0,0.00546302]
[1768277972064,0.15309037,91541.0,91525.0,0.00546302]
[1768277972370,0.09426327,91538.0,91525.0,0.10386302]
[1768277972665,0.15309037,91536.0,91525.0,0.10386302]
[1768277972963,0.09426327,91535.0,91525.0,0.10386302]
[1768277973570,0.09426327,91535.0,91521.0,0.0984]
[1768277974158,0.09426327,91535.0,91518.0,0.00240391]
[1768277974363,0.09426327,91535.0,91519.0,0.09844]
[1768277974759,0.00016382,91537.0,91519.0,0.10818873]
[1768277975069,0.00016382,91537.0,91522.0,0.02068773]
[1768277976765,0.00016382,91537.0,91525.0,0.02085687]
[1768277976969,0.00016382,91537.0,91520.0,0.13252537]
[1768277976970,0.10873256,91550.0,91528.0,0.00975405]
[1768277977358,0.09779656,91550.0,91529.0,0.010938]
[1768277977669,0.10873256,91549.0,91528.0,0.00975405]
[1768277982170,0.16621375,91549.0,91528.0,0.00975405]
[1768277982664,0.09779656,91548.0,91528.0,0.00975405]
[1768277983473,0.09779656,91548.0,91525.0,0.010939]
[1768277984164,0.15527775,91548.0,91525.0,0.010939]
[1768277984473,0.09779656,91547.0,91525.0,0.010939]
[1768277985373,0.00546182,91545.0,91525.0,0.010939]
[1768277985576,0.00546182,91545.0,91525.0,0.02183047]
[1768277988080,0.00546182,91545.0,91526.0,0.01091485]
[1768277988774,0.00546182,91545.0,91527.0,0.010938]
[1768277989978,0.09779656,91544.0,91527.0,0.010938]
[1768277990175,0.15527775,91543.0,91527.0,0.010938]
[1768277990474,0.09779656,91541.0,91527.0,0.010938]
[1768277993377,0.13264458,91540.0,91527.0,0.010938]
[1768277993780,0.13264458,91540.0,91528.0,0.09844]
[1768277996378,0.09779656,91541.0,91528.0,0.09844]
[1768277996883,0.09779656,91541.0,91530.0,0.13264458]
[1768277998886,0.09779656,91541.0,91528.0,0.09844]
[1768277999087,0.09779656,91541.0,91530.0,0.13264458]
[1768278000584,0.00516182,91545.0,91530.0,0.14358258]
[1768278001777,0.09779656,91544.0,91530.0,0.14358258]
[1768278001983,0.15527775,91541.0,91530.0,0.14358258]
[1768278002285,0.09779656,91541.0,91530.0,0.14358258]
[1768278002487,0.09779656,91541.0,91530.0,0.13264458]
[1768278002781,0.09779656,91541.0,91528.0,0.09844]
[1768278002984,0.09779656,91536.0,91528.0,0.09844]
[1768278003887,0.13264458,91540.0,91528.0,0.09844]
[1768278005605,0.09779656,91541.0,91528.0,0.09844]
[1768278005888,0.13264458,91540.0,91528.0,0.09844]
[1768278006684,0.09457821,91536.0,91528.0,0.09844]
[1768278007492,0.00516182,91545.0,91528.0,0.09844]
[1768278007791,0.00516182,91545.0,91530.0,0.13264458]
[1768278011291,0.00516182,91545.0,91530.0,0.22377862]
[1768278013496,0.00516182,91545.0,91530.0,0.09113404]
[1768278013696,0.00516182,91545.0,91530.0,0.22377862]
[1768278014697,0.00516182,91545.0,91530.0,0.09113404]
[1768278014899,0.00516182,91545.0,91530.0,0.22377862]
[1768278015300,0.00516182,91545.0,91531.0,0.010938]
[1768278015901,0.00516182,91545.0,91530.0,0.22377862]
[1768278016095,0.05169315,91563.0,91544.0,0.010936]
[1768278016600,0.05169315,91563.0,91550.0,0.13264458]
[1768278016800,0.05169315,91563.0,91544.0,0.010936]
[1768278017996,0.13264458,91560.0,91542.0,0.09844]
[1768278018194,0.2761116,91560.0,91542.0,0.09844]
[1768278018395,0.14346702,91558.0,91542.0,0.09844]
[1768278018885,0.09177387,91557.0,91542.0,0.09844]
[1768278019091,0.14346702,91557.0,91542.0,0.09844]
[1768278019290,0.14346702,91556.0,91542.0,0.09844]
[1768278022293,0.09177387,91556.0,91542.0,0.09844]
[1768278022494,0.14357858,91560.0,91542.0,0.09844]
[1768278022900,0.09177387,91559.0,91542.0,0.09844]
[1768278023100,0.14346702,91555.0,91542.0,0.09844]
[1768278023400,0.14346702,91552.0,91542.0,0.08524866]
[1768278023597,0.2761116,91552.0,91542.0,0.08524866]
[1768278023795,0.14346702,91549.0,91530.0,0.13264458]
[1768278023994,0.14346702,91549.0,91531.0,0.09844]
[1768278024402,0.09177387,91549.0,91531.0,0.09844]
[1768278024899,0.09177387,91549.0,91531.0,0.109378]
[1768278025400,0.09177387,91549.0,91534.0,0.010937]
[1768278025613,0.14346702,91554.0,91534.0,0.010937]
[1768278027002,0.14346702,91554.0,91540.0,0.13264458]
[1768278027400,0.05169315,91561.0,91544.0,0.13264458]
[1768278027602,0.14346702,91561.0,91540.0,0.14358158]
[1768278028007,0.13264458,91560.0,91540.0,0.14358158]
[1768278028202,0.13264458,91560.0,91542.0,0.09350073]
[1768278029307,0.22441845,91560.0,91541.0,0.09844]
[1768278029495,0.09177387,91559.0,91541.0,0.09844]
[1768278030009,0.14346702,91559.0,91541.0,0.09844]
[1768278030208,0.09177387,91558.0,91541.0,0.09844]
[1768278030710,0.14346702,91558.0,91541.0,0.09844]
[1768278034306,0.010934,91560.0,91541.0,0.09844]
[1768278034513,0.09177387,91558.0,91541.0,0.09844]
[1768278035706,0.13264458,91560.0,91542.0,0.010936]
[1768278035912,0.05490262,91563.0,91550.0,0.13264458]
[1768278036107,0.00546063,91565.0,91553.0,0.13264458]
[1768278036307,0.00546063,91565.0,91555.0,0.13264458]
[1768278036500,0.09844,91577.0,91555.0,0.13264458]
[1768278036703,0.16311909,91578.0,91567.0,0.13264458]
[1768278036902,0.16311909,91578.0,91560.0,0.13264458]
[1768278037114,0.14978475,91577.0,91560.0,0.13264458]
[1768278037413,0.09488213,91576.0,91560.0,0.13264458]
[1768278037619,0.09488213,91576.0,91556.0,0.09396376]
[1768278037620,0.14978475,91576.0,91556.0,0.09396376]
[1768278037809,0.09488213,91574.0,91560.0,0.13264458]
[1768278038009,0.05490262,91575.0,91551.0,0.19240376]
[1768278038010,0.14978475,91567.0,91551.0,0.09844]
[1768278038217,0.09488213,91565.0,91551.0,0.09844]
[1768278038816,0.14978475,91565.0,91551.0,0.09844]
[1768278039014,0.09488213,91569.0,91551.0,0.09844]
[1768278039207,0.14978475,91569.0,91551.0,0.09844]
[1768278039615,0.14978475,91569.0,91551.0,0.109375]
[1768278039917,0.14978475,91569.0,91559.0,0.13264458]
[1768278041013,0.05490262,91572.0,91559.0,0.13264458]
[1768278041209,0.14978475,91572.0,91559.0,0.13264458]
[1768278041404,0.09488213,91572.0,91560.0,0.010934]
[1768278041609,0.05490262,91577.0,91560.0,0.010934]
[1768278041812,0.14978475,91577.0,91560.0,0.010934]
[1768278042208,0.09488213,91577.0,91567.0,0.13264458]
[1768278043115,0.14978475,91577.0,91567.0,0.13264458]
[1768278043808,0.14978475,91576.0,91567.0,0.13264458]
[1768278044009,0.09488213,91575.0,91559.0,0.13264458]
[1768278045920,0.09488213,91575.0,91565.0,0.13264458]
[1768278046415,0.09488213,91575.0,91561.0,0.0984]
[1768278046622,0.14978475,91574.0,91561.0,0.0984]
[1768278047613,0.14978475,91573.0,91561.0,0.0974]
[1768278049923,0.09488213,91573.0,91561.0,0.0974]
[1768278053126,0.00240234,91578.0,91561.0,0.0974]
[1768278053926,0.15218709,91578.0,91561.0,0.0974]
[1768278054124,0.00545944,91585.0,91568.0,0.13264458]
[1768278054328,0.00545944,91585.0,91565.0,0.09396376]
[1768278054329,0.00545944,91585.0,91570.0,0.13264458]
[1768278055329,0.00545944,91585.0,91565.0,0.10489776]
[1768278058218,0.05490262,91584.0,91565.0,0.010934]
[1768278058419,0.14978475,91579.0,91561.0,0.108334]
[1768278058720,0.14978475,91578.0,91561.0,0.108334]
[1768278062933,0.09488213,91573.0,91561.0,0.108334]
[1768278063140,0.14978475,91569.0,91561.0,0.0974]
[1768278063329,0.14978475,91569.0,91561.0,0.09193937]
[1768278064135,0.09488213,91569.0,91561.0,0.09193937]
[1768278065532,0.09488213,91569.0,91561.0,0.0984]
[1768278066236,0.14521453,91567.0,91558.0,0.0984]
[1768278071235,0.09763449,91567.0,91558.0,0.0984]
[1768278071433,0.09763449,91572.0,91558.0,0.0984]
[1768278072136,0.14521453,91571.0,91558.0,0.0984]
[1768278073638,0.09273097,91567.0,91558.0,0.0984]
[1768278073940,0.09273097,91562.0,91558.0,0.04809052]
[1768278074134,0.09273097,91562.0,91556.0,0.09856382]
[1768278075036,0.04855094,91566.0,91556.0,0.09856382]
[1768278075334,0.14128191,91566.0,91556.0,0.09856382]
[1768278077538,0.09273097,91566.0,91556.0,0.09856382]
[1768278085242,0.04855094,91570.0,91556.0,0.09856382]
[1768278085741,0.14128191,91570.0,91556.0,0.09856382]
[1768278085944,0.09273097,91570.0,91557.0,0.010935]
[1768278086348,0.04855094,91574.0,91560.0,0.010934]
[1768278086649,0.14128191,91573.0,91560.0,0.010934]
[1768278086946,0.09273097,91572.0,91560.0,0.010934]
[1768278087138,0.14128191,91572.0,91556.0,0.09856382]
[1768278087337,0.09273097,91570.0,91556.0,0.10949882]
[1768278089254,0.09273097,91576.0,91556.0,0.10949882]
[1768278089851,0.14128191,91576.0,91556.0,0.10949882]
[1768278090052,0.14128191,91575.0,91556.0,0.10949882]
[1768278090252,0.09273097,91574.0,91556.0,0.10949882]
[1768278090455,0.14128191,91571.0,91556.0,0.09856382]
[1768278092157,0.09273097,91570.0,91556.0,0.09856382]
[1768278092458,0.09273097,91565.0,91556.0,0.09856382]
[1768278092642,0.010933,91570.0,91556.0,0.09856382]
[1768278092643,0.04855094,91570.0,91556.0,0.09856382]
[1768278092849,0.14128191,91570.0,91556.0,0.09856382]
[1768278093450,0.05948394,91574.0,91556.0,0.09856382]
[1768278093743,0.09273097,91573.0,91556.0,0.09856382]
[1768278093948,0.14128191,91572.0,91556.0,0.09856382]
[1768278094345,0.09273097,91571.0,91556.0,0.09856382]
[1768278095461,0.14016836,91571.0,91556.0,0.09856382]
[1768278096161,0.14016836,91571.0,91556.0,0.00016382]
[1768278096361,0.14016836,91571.0,91557.0,0.0984]
[1768278097861,0.09273097,91571.0,91557.0,0.0984]
[1768278098461,0.09273097,91571.0,91558.0,0.0984]
[1768278102265,0.04743739,91570.0,91558.0,0.0984]
[1768278102462,0.09943553,91568.0,91558.0,0.0984]
[1768278106267,0.09943553,91565.0,91558.0,0.0984]
[1768278108473,0.14687292,91570.0,91558.0,0.0984]
[1768278109976,0.14687292,91570.0,91556.0,0.00016382]
[1768278110165,0.14687292,91570.0,91557.0,0.0984]
[1768278112575,0.09943553,91570.0,91557.0,0.0984]
[1768278112775,0.14687292,91581.0,91563.0,0.010934]
[1768278112965,0.14687292,91580.0,91563.0,0.010934]
[1768278113165,0.0984,91583.0,91563.0,0.010934]
[1768278113166,0.09943553,91578.0,91563.0,0.010934]
[1768278113365,0.09943553,91576.0,91563.0,0.010934]
[1768278113675,0.14687292,91576.0,91563.0,0.010934]
[1768278113874,0.09943553,91575.0,91563.0,0.010934]
[1768278114076,0.14687292,91575.0,91563.0,0.010934]
[1768278116178,0.14687292,91575.0,91565.0,0.13253154]
[1768278117578,0.14687292,91575.0,91563.0,0.010934]
[1768278119573,0.04743739,91601.0,91579.0,0.10523173]
[1768278119772,0.14687292,91600.0,91590.0,0.13253154]
[1768278120778,0.14687292,91599.0,91590.0,0.13253154]
[1768278121078,0.14687292,91598.0,91583.0,1.5]
[1768278121278,0.09943553,91603.0,91588.0,0.13253154]
[1768278121477,0.09943553,91603.0,91583.0,1.5]
[1768278121478,0.09943553,91602.0,91590.0,0.13253154]
[1768278121780,0.14687292,91601.0,91590.0,0.13253154]
[1768278122280,0.23196707,91600.0,91583.0,1.5]
[1768278122978,0.05836739,91598.0,91583.0,1.5]
[1768278123278,0.13253154,91600.0,91583.0,1.5]
[1768278123675,0.03527506,91615.0,91595.0,0.09429973]
[1768278123882,0.01638406,91625.0,91609.0,0.09429973]
[1768278124075,0.01638406,91625.0,91613.0,0.04457279]
[1768278124275,0.00545706,91625.0,91613.0,0.04457279]
[1768278124779,0.010926,91635.0,91616.0,0.06253818]
[1768278124978,0.010926,91635.0,91620.0,0.13253154]
[1768278126277,0.010926,91635.0,91620.0,0.19506972]
[1768278126881,0.010926,91632.0,91618.0,0.00016373]
[1768278127078,0.13253154,91630.0,91618.0,0.00016373]
[1768278127379,0.0984,91635.0,91618.0,0.00016373]
[1768278127884,0.10385586,91645.0,91626.0,0.09327447]
[1768278128080,0.0563729,91678.0,91627.0,0.0984]
[1768278128279,0.09941104,91686.0,91668.0,0.13253154]
[1768278128580,0.09941104,91685.0,91668.0,0.13253154]
[1768278128778,0.09941104,91679.0,91660.0,0.0984]
[1768278128982,0.00838669,91690.0,91660.0,0.0984]
[1768278129197,0.010917,91703.0,91682.0,0.0623491]
[1768278129373,0.09941104,91704.0,91690.0,0.13253154]
[1768278129681,0.09941104,91704.0,91676.0,0.09836]
[1768278129682,0.010915,91720.0,91697.0,0.0623491]
[1768278129985,0.09941104,91714.0,91690.0,0.06253818]
[1768278130280,0.09941104,91699.0,91674.0,0.07345918]
[1768278130584,0.09941104,91698.0,91674.0,0.06253818]
[1768278130780,0.11032904,91697.0,91680.0,0.13253154]
[1768278131082,0.11032904,91697.0,91674.0,0.06253818]
[1768278131278,0.010919,91692.0,91674.0,0.06253818]
[1768278131778,0.010919,91689.0,91667.0,0.06253818]
[1768278131982,0.09941104,91668.0,91637.0,0.06928993]
[1768278132183,0.09941104,91659.0,91640.0,0.13253154]
[1768278132673,0.010921,91671.0,91649.0,0.13253154]
[1768278132674,0.06073758,91667.0,91649.0,0.13253154]
[1768278132876,0.09836,91667.0,91649.0,0.13253154]
[1768278133379,0.09852361,91667.0,91645.0,0.06253818]
[1768278133580,0.00016361,91667.0,91647.0,0.010924]
[1768278133778,0.00016361,91667.0,91646.0,0.06253818]
[1768278136483,0.09028992,91666.0,91640.0,0.09322318]
[1768278136687,0.09028992,91664.0,91640.0,0.10414818]
[1768278136891,0.09028992,91664.0,91640.0,0.34956644]
[1768278137097,0.00016361,91667.0,91644.0,0.1898268]
[1768278138096,0.09028992,91678.0,91652.0,0.20120426]
[1768278138286,0.09832,91678.0,91658.0,0.10460064]
[1768278138993,0.09832,91678.0,91659.0,0.09367764]
[1768278139679,0.09832,91678.0,91658.0,0.09660362]
[1768278140390,0.18860992,91678.0,91654.0,0.09367764]
[1768278140887,0.18860992,91678.0,91656.0,0.010923]
[1768278141388,0.18860992,91678.0,91660.0,0.010922]
[1768278141687,0.09028992,91686.0,91664.0,0.09219033]
[1768278141882,0.09832,91694.0,91672.0,0.09219033]
[1768278142077,0.09832,91694.0,91668.0,0.14881464]
[1768278142078,0.09832,91696.0,91674.0,0.09660362]
[1768278142290,0.09832,91696.0,91678.0,0.01092]
[1768278142595,0.09832,91696.0,91675.0,0.09162359]
[1768278142781,0.09315212,91687.0,91662.0,0.09832]
[1768278142981,0.09028992,91686.0,91662.0,0.09832]
[1768278143280,0.09028992,91680.0,91663.0,0.10906909]
[1768278143486,0.09315212,91677.0,91665.0,0.00016361]
[1768278143687,0.09315212,91675.0,91665.0,0.00016361]
[1768278143993,0.09832,91681.0,91656.0,0.09832]
[1768278143994,0.09028992,91680.0,91660.0,0.14881464]
[1768278144184,0.09023992,91680.0,91656.0,0.109243]
[1768278144492,0.09023992,91680.0,91657.0,0.10908218]
[1768278144684,0.09315212,91678.0,91656.0,0.09832]
[1768278144887,0.09315212,91676.0,91656.0,0.09832]
[1768278145088,0.010921,91675.0,91654.0,0.09832]
[1768278145288,0.10407312,91675.0,91654.0,0.09832]
[1768278145684,0.09315212,91675.0,91654.0,0.109243]
[1768278146185,0.09028992,91674.0,91654.0,0.109243]
[1768278146381,0.09028992,91674.0,91654.0,0.09832]
[1768278151398,0.09028992,91673.0,91654.0,0.09832]
[1768278151892,0.09028992,91673.0,91652.0,0.010923]
[1768278152293,0.18344204,91671.0,91652.0,0.010923]
[1768278152596,0.09028992,91668.0,91647.0,0.010924]
[1768278153098,0.09028992,91665.0,91645.0,0.20737586]
[1768278153299,0.09028992,91663.0,91645.0,0.09828]
[1768278153510,0.09028992,91663.0,91646.0,0.10909586]
[1768278155099,0.09199562,91662.0,91645.0,0.09828]
[1768278155294,0.09199562,91657.0,91640.0,0.13231022]
[1768278156801,0.09199562,91657.0,91638.0,0.109205]
[1768278157003,0.09199562,91657.0,91640.0,0.13231022]
[1768278159106,0.09199562,91657.0,91640.0,0.13226022]
[1768278159303,0.20187736,91657.0,91640.0,0.13226022]
[1768278159501,0.09895874,91653.0,91638.0,0.00240076]
[1768278159702,0.09199562,91650.0,91638.0,0.00240076]
[1768278159904,0.09199562,91656.0,91640.0,0.13231022]
[1768278160108,0.09199562,91656.0,91638.0,0.00240076]
[1768278160309,0.09199562,91656.0,91640.0,0.13231022]